fUSD/lending_fUSD_20260129
["ID","MTS","AMOUNT","RATE_DAILY","PERIOD"]
[403961080,1769694643924,-150.0,0.00017589,2]
[403961082,1769694643933,-150.0,0.00017589,2]
[403961084,1769694643943,-150.0,0.00017589,2]
[403961086,1769694643953,-500.0,0.00017589,2]
[403961089,1769694643962,-153.23607155,0.00017589,2]
[403961091,1769694643972,-150.0,0.00017589,2]
[403961093,1769694643981,-150.89317247,0.00017589,2]
[403961095,1769694643991,-150.0,0.00017589,2]
[403961097,1769694644000,-151.38299639,0.00017589,2]
[403961099,1769694644010,-150.94007099,0.00017589,2]
[403961101,1769694644024,-500.0,0.00017589,2]
[403961103,1769694644034,-150.0,0.00017589,2]
[403961106,1769694644044,-155.08275529,0.00017589,2]
[403961108,1769694644053,-150.0,0.00017589,2]
[403961110,1769694644063,-165.72537453,0.00017589,2]
[403961112,1769694644075,-500.0,0.00017589,2]
[403961114,1769694644085,-150.0,0.00017589,2]
[403961116,1769694644095,-150.0,0.00017589,2]
[403961118,1769694644105,-150.0,0.00017589,2]
[403961120,1769694644116,-150.0,0.00017589,2]
[403961123,1769694644126,-500.0,0.00017589,2]
[403961125,1769694644136,-150.0,0.00017589,2]
[403961127,1769694644146,-290.39862941,0.00017594,2]
[403961129,1769694644156,-866.0,0.00017595,2]
[403961131,1769694644165,-2000.0,0.000176,6]
[403961133,1769694644175,-1388.05458114,0.00017616,2]
[403961135,1769694644185,-1296.55427389,0.00017616,2]
[403961137,1769694644196,-398.32,0.00017623,2]
[403961140,1769694644206,-2986.73035102,0.0001764,2]
[403961166,1769694644430,-150.0,0.00017644,2]
[403961168,1769694644439,-176.88485057,0.00017644,2]
[403961170,1769694644448,-547.0,0.00017644,2]
[403961172,1769694644457,-500.0,0.00017644,2]
[403961174,1769694644466,-150.0,0.00017644,2]
[403961176,1769694644475,-209.0686946,0.00017644,2]
[403961178,1769694644484,-150.0,0.00017644,2]
[403961180,1769694644493,-150.0,0.00017644,2]
[403961182,1769694644502,-500.0,0.00017644,2]
[403961184,1769694644511,-153.98209537,0.00017644,2]
[403961186,1769694644520,-153.57030056,0.00017644,2]
[403961188,1769694644529,-500.0,0.00017644,2]
[403961190,1769694644540,-204.59716346,0.00017644,2]
[403961192,1769694644550,-150.0,0.00017644,2]
[403961194,1769694644559,-500.0,0.00017644,2]
[403961196,1769694644568,-281.0,0.00017644,2]
[403961198,1769694644577,-150.0,0.00017644,2]
[403961200,1769694644586,-150.0,0.00017644,2]
[403961202,1769694644595,-500.0,0.00017644,2]
[403961204,1769694644604,-181.08010149,0.00017647,2]
[403961206,1769694644613,-885.86649465,0.00017647,2]
[403961208,1769694644624,-151.0,0.00017647,2]
[403961210,1769694644634,-217.15233878,0.00017647,2]
[403961212,1769694644643,-301.1433787,0.00017649,2]
[403961214,1769694644652,-2812.0,0.00017675,2]
[403961216,1769694644661,-2652.0,0.00017681,2]
[403961218,1769694644672,-21527.04413435,0.00017683,2]
[403961220,1769694644682,-38986.01907013,0.00017683,2]
[403961222,1769694644691,-150.0,0.00017698,2]
[403961224,1769694644700,-150.0,0.00017698,2]
[403961226,1769694644709,-150.0,0.00017698,2]
[403961228,1769694644718,-150.0,0.00017698,2]
[403961230,1769694644728,-150.0,0.00017698,2]
[403961232,1769694644737,-150.0,0.00017699,2]
[403961234,1769694644746,-547.0,0.00017699,2]
[403961236,1769694644756,-500.0,0.00017699,2]
[403961238,1769694644765,-150.0,0.00017699,2]
[403961240,1769694644774,-210.58495548,0.00017699,2]
[403961243,1769694644784,-200.0,0.00017699,2]
[403961245,1769694644793,-500.0,0.00017699,2]
[403961247,1769694644802,-259.23494568,0.00017699,2]
[403961249,1769694644811,-200.0,0.00017699,2]
[403961251,1769694644820,-150.0,0.00017699,2]
[403961253,1769694644829,-200.0,0.00017699,2]
[403961255,1769694644838,-500.0,0.00017699,2]
[403961257,1769694644847,-10000.0,0.000177,2]
[403961259,1769694644856,-2000.0,0.000177,6]
[403961261,1769694644865,-548.75558421,0.00017725,2]
[403961263,1769694644875,-500.0,0.00017725,2]
[403961264,1769694644883,-620.13152007,0.00017725,2]
[403961267,1769694644893,-514.28,0.00017725,2]
[403961269,1769694644903,-500.0,0.00017725,2]
[403961271,1769694644912,-1736.78,0.00017727,2]
[403961273,1769694644921,-511.22384566,0.00017736,2]
[403961276,1769694644941,-2909.12231105,0.00017737,2]
[403961278,1769694644951,-2909.12231105,0.00017737,2]
[403961280,1769694644960,-2909.12231105,0.00017737,2]
[403961282,1769694644970,-2909.12231105,0.00017737,2]
[403961284,1769694644980,-2909.12231105,0.00017737,2]
[403961286,1769694644990,-2909.12231105,0.00017737,2]
[403961289,1769694645000,-2909.12231105,0.00017737,2]
[403961291,1769694645009,-2909.12231105,0.00017737,2]
[403961293,1769694645020,-2909.12231105,0.00017737,2]
[403961295,1769694645030,-2909.12231105,0.00017737,2]
[403961298,1769694645040,-2909.12231105,0.00017737,2]
[403961300,1769694645049,-2909.12231105,0.00017737,2]
[403961302,1769694645059,-2909.12231105,0.00017737,2]
[403961304,1769694645069,-2909.12231105,0.00017737,2]
[403961306,1769694645079,-2909.12231105,0.00017737,2]
[403961308,1769694645088,-2909.12231105,0.00017737,2]
[403961310,1769694645099,-2909.12231105,0.00017737,2]
[403961312,1769694645108,-2909.12231105,0.00017737,2]
[403961314,1769694645118,-2909.12231105,0.00017737,2]
[403961316,1769694645128,-2909.12231105,0.00017737,2]
[403961318,1769694645138,-2909.12231105,0.00017737,2]
[403961320,1769694645147,-2909.12231105,0.00017737,2]
[403961322,1769694645157,-2909.12231105,0.00017737,2]
[403961324,1769694645166,-2909.12231105,0.00017737,2]
[403961326,1769694645175,-2909.12231105,0.00017737,2]
[403961328,1769694645184,-2909.12231105,0.00017737,2]
[403961330,1769694645194,-2909.12231105,0.00017737,2]
[403961332,1769694645203,-390.0,0.00017743,2]
[403961335,1769694645214,-150.0,0.00017753,2]
[403961337,1769694645223,-150.0,0.00017753,2]
[403961339,1769694645232,-150.0,0.00017753,2]
[403961341,1769694645241,-500.0,0.00017753,2]
[403961343,1769694645250,-531.74,0.00017753,2]
[403961345,1769694645260,-203.50697383,0.00017753,2]
[403961347,1769694645268,-547.0,0.00017753,2]
[403961348,1769694645278,-500.0,0.00017753,2]
[403961351,1769694645287,-150.0,0.00017753,2]
[403961353,1769694645296,-150.0,0.00017753,2]
[403961355,1769694645306,-500.0,0.00017753,2]
[403961357,1769694645320,-2652.0,0.00017757,2]
[403961359,1769694645330,-393.0,0.0001776,2]
[403961361,1769694645339,-511.2238456,0.00017763,2]
[403961363,1769694645349,-283.0,0.00017764,2]
[403961365,1769694645358,-521.41084093,0.00017764,3]
[403961367,1769694645367,-2812.0,0.00017768,2]
[403961369,1769694645377,-390.0,0.00017783,2]
[403961371,1769694645387,-393.0,0.00017788,2]
[403961373,1769694645396,-511.2238456,0.00017791,2]
[403961375,1769694645405,-390.0,0.00017794,2]
[403961378,1769694645415,-5090.946,0.00017799,2]
[403961380,1769694645425,-374.033,0.00017799,2]
[403961381,1769694645434,-2000.0,0.000178,6]
[403961384,1769694645444,-500.0,0.00017803,2]
[403961386,1769694645454,-150.0,0.00017808,2]
[403961388,1769694645464,-200.0,0.00017808,2]
[403961390,1769694645474,-200.0,0.00017808,2]
[403961392,1769694645483,-500.0,0.00017808,2]
[403961394,1769694645493,-547.0,0.00017808,2]
[403961396,1769694645502,-500.0,0.00017808,2]
[403961398,1769694645512,-150.0,0.00017808,2]
[403961400,1769694645522,-150.0,0.00017808,2]
[403961402,1769694645532,-500.0,0.00017808,2]
[403961404,1769694645541,-250.0,0.00017808,5]
[403961406,1769694645551,-250.0,0.00017808,5]
[403961408,1769694645560,-250.0,0.00017808,5]
[403961410,1769694645570,-250.0,0.00017808,5]
[403961412,1769694645579,-250.0,0.00017808,5]
[403961414,1769694645589,-250.0,0.00017808,5]
[403961416,1769694645598,-250.0,0.00017808,5]
[403961418,1769694645608,-250.0,0.00017808,5]
[403961420,1769694645618,-250.0,0.00017808,5]
[403961423,1769694645633,-250.0,0.00017808,5]
[403961425,1769694645643,-250.0,0.00017808,5]
[403961427,1769694645653,-390.642005,0.00017808,5]
[403961429,1769694645663,-393.0,0.00017815,2]
[403961431,1769694645673,-408.45430574,0.00017817,2]
[403961433,1769694645682,-514.28,0.00017817,2]
[403961435,1769694645692,-514.28,0.00017817,2]
[403961437,1769694645707,-514.28,0.00017817,2]
[403961439,1769694645716,-514.28,0.00017817,2]
[403961441,1769694645726,-514.28,0.00017817,2]
[403961443,1769694645735,-514.28,0.00017817,2]
[403961445,1769694645745,-514.28,0.00017817,2]
[403961447,1769694645755,-514.28,0.00017817,2]
[403961449,1769694645765,-514.28,0.00017817,2]
[403961451,1769694645775,-514.28,0.00017817,2]
[403961454,1769694645784,-500.0,0.00017817,2]
[403961455,1769694645793,-1033.76,0.00017818,2]
[403961457,1769694645803,-1033.76,0.00017818,2]
[403961460,1769694645812,-1033.76,0.00017818,2]
[403961462,1769694645822,-1033.76,0.00017818,2]
[403961464,1769694645831,-1150.81,0.00017818,2]
[403961466,1769694645840,-511.2238456,0.00017818,2]
[403961468,1769694645850,-393.0,0.0001782,2]
[403961470,1769694645860,-1333.33333,0.0001782,2]
[403961472,1769694645869,-1333.33333,0.0001782,2]
[403961474,1769694645879,-500.0,0.00017829,2]
[403961476,1769694645889,-531.74,0.00017829,2]
[403961478,1769694645898,-25000.0,0.0001783,3]
[403961480,1769694645907,-521.41084092,0.00017832,3]
[403961482,1769694645917,-25000.0,0.00017838,3]
[403961484,1769694645926,-511.2238456,0.00017845,2]
[403961486,1769694645935,-25000.0,0.00017847,3]
[403961488,1769694645944,-390.0,0.0001785,2]
[403961490,1769694645953,-755.5748152,0.00017855,2]
[403961492,1769694645963,-25000.0,0.00017856,3]
[403961494,1769694645972,-150.0,0.00017862,2]
[403961496,1769694645981,-500.0,0.00017863,2]
[403961498,1769694645990,-547.0,0.00017863,2]
[403961500,1769694646000,-500.0,0.00017863,2]
[403961502,1769694646010,-250.0,0.00017863,2]
[403961504,1769694646020,-250.0,0.00017863,2]
[403961506,1769694646029,-500.0,0.00017863,2]
[403961508,1769694646038,-1000.0,0.00017864,2]
[403961510,1769694646049,-1000.0,0.00017864,2]
[403961512,1769694646058,-904.623,0.00017864,2]
[403961515,1769694646068,-1000.0,0.00017864,2]
[403961517,1769694646077,-1000.0,0.00017864,2]
[403961519,1769694646090,-1000.0,0.00017864,2]
[403961521,1769694646101,-1000.0,0.00017864,2]
[403961523,1769694646110,-1000.0,0.00017864,2]
[403961525,1769694646120,-25000.0,0.00017865,3]
[403961527,1769694646129,-25000.0,0.00017865,3]
[403961529,1769694646139,-1109.85271792,0.00017866,2]
[403961531,1769694646148,-1660.27329008,0.00017866,2]
[403961533,1769694646158,-2246.3991,0.00017866,2]
[403961536,1769694646167,-393.0,0.0001787,2]
[403961538,1769694646176,-1000.0,0.00017871,2]
[403961540,1769694646186,-625.72305662,0.00017871,2]
[403961605,1769694646894,-374.27694338,0.00017871,2]
[403961607,1769694646904,-1000.0,0.00017871,2]
[403961609,1769694646912,-511.2238456,0.00017873,2]
[403961611,1769694646921,-16317.37459625,0.00017874,3]
[403961613,1769694646932,-3605.63493851,0.00017874,3]
[403961618,1769694646961,-2969.80208559,0.00017874,3]
[403961680,1769694647547,-2107.18837965,0.00017874,3]
[403961682,1769694647556,-173.80890615,0.00017874,3]
[403961685,1769694647567,-1956.161805,0.00017874,3]
[403961687,1769694647577,-534.0,0.00017874,3]
[403961692,1769694647617,-7089.32551755,0.00017874,3]
[403961703,1769694647724,-6008.50315525,0.00017874,3]
[403961705,1769694647735,-570.39513047,0.00017874,3]
[403961707,1769694647746,-2331.0408887,0.00017874,3]
[403961709,1769694647757,-1175.83440132,0.00017874,3]
[403961712,1769694647768,-5160.93019556,0.00017874,3]
[403961714,1769694647777,-25000.0,0.00017882,3]
[403961738,1769694647987,-25000.0,0.00017882,3]
[403961740,1769694647997,-2000.0,0.00017884,2]
[403961742,1769694648006,-2000.0,0.00017884,2]
[403961744,1769694648015,-982.348,0.00017884,2]
[403961746,1769694648024,-25000.0,0.00017891,3]
[403961748,1769694648032,-25000.0,0.00017891,3]
[403961750,1769694648042,-2652.0,0.00017893,2]
[403961752,1769694648051,-1000.0,0.000179,2]
[403961754,1769694648060,-33270.6958,0.000179,2]
[403961756,1769694648069,-511.2238456,0.000179,2]
[403961758,1769694648079,-10000.0,0.000179,2]
[403961760,1769694648088,-25000.0,0.000179,3]
[403961762,1769694648102,-21527.04413435,0.000179,2]
[403961764,1769694648111,-2503.0,0.000179,6]
[403961766,1769694648121,-25000.0,0.000179,3]
[403961768,1769694648131,-38986.01907013,0.000179,2]
[403961770,1769694648140,-455.0987246,0.000179,2]
[403961772,1769694648149,-521.41084092,0.000179,3]
[403961774,1769694648158,-7996.0,0.000179,2]
[403961776,1769694648167,-150.0,0.00017917,2]
[403961778,1769694648176,-500.0,0.00017918,2]
[403961780,1769694648186,-547.0,0.00017918,2]
[403961782,1769694648195,-500.0,0.00017918,2]
[403961784,1769694648205,-500.0,0.00017918,2]
[403961786,1769694648215,-393.0,0.00017921,2]
[403961788,1769694648224,-282.0,0.00017931,2]
[403961790,1769694648233,-393.0,0.00017944,2]
[403961792,1769694648243,-2652.0,0.00017956,2]
[403961794,1769694648252,-162.26,0.00017965,2]
[403961796,1769694648261,-232.99894081,0.00017972,2]
[403961798,1769694648271,-500.0,0.00017972,2]
[403961800,1769694648280,-547.0,0.00017973,2]
[403961802,1769694648289,-500.0,0.00017973,2]
[403961804,1769694648303,-500.0,0.00017973,2]
[403961806,1769694648312,-500.0,0.00017973,2]
[403961809,1769694648322,-500.0,0.00017973,2]
[403961811,1769694648331,-500.0,0.00017973,2]
[403961813,1769694648340,-500.0,0.00017973,2]
[403961815,1769694648349,-500.0,0.00017973,2]
[403961817,1769694648359,-500.0,0.00017973,2]
[403961819,1769694648368,-500.0,0.00017973,2]
[403961821,1769694648377,-500.0,0.00017973,2]
[403961823,1769694648386,-500.0,0.00017973,2]
[403961825,1769694648396,-500.0,0.00017973,2]
[403961827,1769694648405,-500.0,0.00017973,2]
[403961829,1769694648414,-500.0,0.00017973,2]
[403961831,1769694648423,-158.05561362,0.00017973,2]
[403961833,1769694648432,-500.0,0.00017973,2]
[403961835,1769694648441,-500.0,0.00017973,2]
[403961837,1769694648450,-500.0,0.00017973,2]
[403961839,1769694648459,-500.0,0.00017973,2]
[403961841,1769694648469,-504.20951303,0.00017973,2]
[403961843,1769694648478,-500.0,0.00017973,2]
[403961845,1769694648487,-515.88206341,0.00017973,2]
[403961847,1769694648500,-500.0,0.00017973,2]
[403961849,1769694648510,-500.0,0.00017973,2]
[403961851,1769694648519,-500.0,0.00017973,2]
[403961853,1769694648529,-500.0,0.00017973,2]
[403961856,1769694648539,-500.0,0.00017973,2]
[403961858,1769694648549,-160.09303877,0.00017973,2]
[403961860,1769694648558,-500.0,0.00017973,2]
[403961862,1769694648568,-160.53394236,0.00017973,2]
[403961864,1769694648577,-500.0,0.00017973,2]
[403961866,1769694648586,-500.0,0.00017973,2]
[403961868,1769694648596,-500.0,0.00017973,2]
[403961870,1769694648606,-558.2762163,0.00017973,2]
[403961872,1769694648616,-501.28378078,0.00017973,2]
[403961874,1769694648630,-500.0,0.00017973,2]
[403961876,1769694648639,-502.44429427,0.00017973,2]
[403961878,1769694648649,-162.18,0.00017975,2]
[403961880,1769694648659,-2652.0,0.00017979,2]
[403961882,1769694648669,-390.0,0.00017981,2]
[403961885,1769694648679,-500.0,0.00017981,2]
[403961887,1769694648691,-531.74,0.00017981,2]
[403961889,1769694648703,-500.0,0.00017982,2]
[403961891,1769694648713,-222.93137113,0.00017982,2]
[403961893,1769694648723,-500.0,0.00017984,2]
[403961895,1769694648733,-500.0,0.00017984,2]
[403961897,1769694648743,-500.0,0.00017984,2]
[403961899,1769694648752,-500.0,0.00017984,2]
[403961901,1769694648762,-647.66859598,0.00017984,2]
[403961903,1769694648772,-531.74,0.00017984,2]
[403961905,1769694648781,-531.74,0.00017984,2]
[403961908,1769694648791,-531.74,0.00017984,2]
[403961910,1769694648800,-531.74,0.00017984,2]
[403961912,1769694648809,-531.74,0.00017984,2]
[403961914,1769694648819,-531.86,0.00017984,2]
[403961916,1769694648828,-162.26,0.00017986,2]
[403961918,1769694648837,-393.0,0.00017986,2]
[403961920,1769694648847,-153.32539,0.00017988,2]
[403961922,1769694648855,-393.0,0.00017989,2]
[403961924,1769694648865,-755.5748152,0.0001799,2]
[403961926,1769694648875,-382.0,0.00017991,2]
[403961928,1769694648886,-151.0,0.00017997,2]
[403961930,1769694648895,-150.0,0.00017999,2]
[403961932,1769694648904,-150.0,0.00017999,2]
[403961934,1769694648914,-150.0,0.00017999,2]
[403961936,1769694648923,-150.0,0.00017999,2]
[403961938,1769694648933,-289.02704058,0.00017999,2]
[403961940,1769694648943,-300.0,0.00017999,2]
[403961942,1769694648952,-666.0,0.00017999,2]
[403961944,1769694648961,-666.0,0.00017999,2]
[403961946,1769694648971,-500.0,0.00017999,2]
[403961948,1769694648980,-500.0,0.00017999,2]
[403961950,1769694648990,-500.0,0.00017999,2]
[403961952,1769694648999,-500.0,0.00017999,2]
[403961954,1769694649010,-500.0,0.00017999,2]
[403961956,1769694649019,-500.0,0.00017999,2]
[403961958,1769694649028,-170.02838547,0.00017999,2]
[403961961,1769694649038,-666.0,0.00017999,2]
[403961963,1769694649050,-300.0,0.00017999,2]
[403961965,1769694649060,-666.0,0.00017999,2]
[403961967,1769694649069,-300.0,0.00017999,2]
[403961969,1769694649079,-666.0,0.00017999,2]
[403961971,1769694649089,-514.28,0.00017999,2]
[403961973,1769694649098,-514.28,0.00017999,2]
[403961975,1769694649108,-514.28,0.00017999,2]
[403961977,1769694649118,-514.28,0.00017999,2]
[403961979,1769694649127,-514.28,0.00017999,2]
[403961981,1769694649138,-514.28,0.00017999,2]
[403961983,1769694649147,-514.28,0.00017999,2]
[403961985,1769694649156,-514.28,0.00017999,2]
[403961987,1769694649166,-514.28,0.00017999,2]
[403961989,1769694649175,-514.28,0.00017999,2]
[403961991,1769694649185,-514.28,0.00017999,2]
[403961993,1769694649194,-514.28,0.00017999,2]
[403961995,1769694649204,-514.32231824,0.00017999,2]
[403961998,1769694649214,-300.0,0.00017999,2]
[403962000,1769694649224,-666.0,0.00017999,2]
[403962002,1769694649234,-3081981.37816538,0.00018,2]
[403962004,1769694649243,-1000.0,0.00018,2]
[403962006,1769694649252,-1000.0,0.00018,2]
[403962008,1769694649262,-1000.0,0.00018,2]
[403962010,1769694649272,-1000.0,0.00018,2]
[403962012,1769694649281,-1000.0,0.00018,2]
[403962014,1769694649291,-1000.0,0.00018,2]
[403962016,1769694649300,-1000.0,0.00018,2]
[403962019,1769694649310,-1000.0,0.00018,2]
[403962021,1769694649320,-1000.0,0.00018,2]
[403962022,1769694649329,-1000.0,0.00018,2]
[403962023,1769694649339,-1000.0,0.00018,2]
[403962024,1769694649348,-1000.0,0.00018,2]
[403962025,1769694649358,-1000.0,0.00018,2]
[403962026,1769694649367,-1000.0,0.00018,2]
[403962027,1769694649376,-1000.0,0.00018,2]
[403962028,1769694649385,-1000.0,0.00018,2]
[403962029,1769694649395,-1000.0,0.00018,2]
[403962030,1769694649404,-1000.0,0.00018,2]
[403962031,1769694649413,-1000.0,0.00018,2]
[403962032,1769694649422,-1000.0,0.00018,2]
[403962033,1769694649432,-1000.0,0.00018,2]
[403962034,1769694649441,-1000.0,0.00018,2]
[403962036,1769694649450,-1000.0,0.00018,2]
[403962038,1769694649460,-1000.0,0.00018,2]
[403962040,1769694649470,-1005.85593805,0.00018,2]
[403962043,1769694649481,-1386788.60024159,0.00018,2]
[403962052,1769694649552,-879.96481045,0.00018,2]
[403962054,1769694649563,-422.28753396,0.00018,2]
[403962056,1769694649575,-653.76080498,0.00018,2]
[403962059,1769694649589,-244787.71621439,0.00018,2]
[403962061,1769694649600,-77355.08270561,0.00018,2]
[403962063,1769694649610,-101058.8861439,0.00018,2]
[403962066,1769694649622,-21041.45799257,0.00018,2]
[403962068,1769694649637,-4348.12435315,0.00018,2]
[403962086,1769694651365,-1612.00783159,0.00018,2]
[403962087,1769694651579,-38.92267802,0.00018,2]
[403962088,1769694652016,-974.46124942,0.00018,2]
[403962089,1769694652027,-29165.8280125,0.00018,2]
[403962090,1769694652047,-369.60010714,0.00018,2]
[403962091,1769694652063,-2525.57221363,0.00018,2]
[403962095,1769694702206,167.6,0.0001328,2]
[403962102,1769694763045,300.0,0.000147,5]
[403962103,1769694765693,600.0,0.000148,5]
[403962104,1769694767270,900.0,0.000149,5]
[403962106,1769694803514,700.0,0.000147,5]
[403962107,1769694805683,1400.0,0.000148,5]
[403962109,1769694808070,2100.0,0.000149,5]
[403962143,1769695072227,-300.0,0.00014776,2]
[403962144,1769695072250,-11417.78,0.00014777,2]
[403962145,1769695072273,-250.0,0.00014878,2]
[403962146,1769695072296,-216.55,0.0001498,2]
[403962147,1769695072318,-250.0,0.00015017,2]
[403962148,1769695072341,-216.93470814,0.00015058,2]
[403962149,1769695072363,-303.39914974,0.00015111,2]
[403962150,1769695072386,-1245.4688414,0.00015111,2]
[403962151,1769695072409,-151.0,0.00015158,2]
[403962152,1769695072431,-300.0,0.00015159,2]
[403962153,1769695072455,-1200.0,0.00015159,2]
[403962154,1769695072478,-300.0,0.0001516,2]
[403962155,1769695072500,-300.0,0.0001516,2]
[403962156,1769695072522,-300.0,0.0001516,2]
[403962157,1769695072546,-426.03334795,0.0001516,2]
[403962158,1769695072569,-500.0,0.0001516,2]
[403962159,1769695072593,-262.68800081,0.0001516,2]
[403962160,1769695072616,-565.40036441,0.0001516,2]
[403962161,1769695072639,-500.0,0.0001516,2]
[403962162,1769695072662,-500.0,0.0001516,2]
[403962163,1769695072685,-500.0,0.0001516,2]
[403962164,1769695072708,-500.0,0.0001516,2]
[403962165,1769695072732,-15594.40762807,0.00015161,2]
[403962167,1769695085343,-60086.42435948,0.00015161,2]
[403962168,1769695086255,1184.46,0.00015041,2]
[403962169,1769695086472,1184.46,0.00015089,2]
[403962170,1769695087342,1184.46,0.00015137,2]
[403962172,1769695092368,-96446.62,0.00015161,2]
[403962349,1769695637181,-2994.57376323,0.00014524,2]
[403962350,1769695637367,700.0,0.000146,5]
[403962351,1769695639732,1400.0,0.000147,5]
[403962352,1769695641505,2200.0,0.000148,5]
[403962353,1769695643605,2900.0,0.000149,5]
[403962432,1769695761098,-768.26,0.00014234,2]
[403962433,1769695761118,-250.0,0.00014379,2]
[403962434,1769695761137,-2310.02623677,0.00014524,2]
[403962435,1769695761156,-150.0,0.00014568,2]
[403962436,1769695761175,-300.0,0.00014619,2]
[403962437,1769695761194,-300.0,0.00014619,2]
[403962438,1769695761212,-600.0,0.0001462,2]
[403962439,1769695761231,-195.0,0.0001462,2]
[403962440,1769695761249,-1802.62498389,0.0001462,2]
[403962441,1769695761269,-600.0,0.00014794,2]
[403962442,1769695761288,-195.0,0.00014794,2]
[403962445,1769695769397,-188.37422672,0.00014909,2]
[403962460,1769695831971,-0.56244935,0.000149,2]
[403962461,1769695831996,-3401.05626815,0.000149,2]
[403962462,1769695832008,-274.0,0.00014909,2]
[403962464,1769695832019,-300.0,0.0001491,2]
[403962465,1769695832029,-1200.0,0.0001491,2]
[403962466,1769695832042,-2514.26,0.00014911,2]
[403962467,1769695832052,-8818.37,0.00014911,2]
[403962468,1769695832062,-150.0,0.0001496,2]
[403962469,1769695832072,-33527.97640031,0.00014961,2]
[403962470,1769695832083,-202.26609982,0.00014961,2]
[403962471,1769695832093,-3564.03788857,0.00014961,2]
[403962472,1769695832103,-21624.224836,0.00014961,2]
[403962473,1769695832113,-417.86991206,0.00015,2]
[403962474,1769695832124,-755.5748152,0.00015051,2]
[403962475,1769695832134,-500.0,0.00015052,2]
[403962476,1769695832143,-210.42094214,0.00015052,2]
[403962477,1769695832153,-200.0,0.00015052,2]
[403962478,1769695832163,-151.0,0.00015058,2]
[403962480,1769695832172,-999.99,0.0001506,2]
[403962481,1769695832182,-299.99,0.0001506,2]
[403962482,1769695832192,-150.0,0.0001506,2]
[403962483,1769695832201,-150.0,0.0001506,2]
[403962484,1769695832212,-34767.39497139,0.00015061,2]
[403962485,1769695832224,-6481.6209635,0.00015061,2]
[403962492,1769695837753,-2358750.98406511,0.00015061,2]
[403962493,1769695837763,-3697.63,0.00015061,2]
[403962494,1769695837773,-3826.35,0.00015061,2]
[403962495,1769695837782,-310.67,0.00015061,2]
[403962496,1769695837791,-9999.99,0.00015061,2]
[403962497,1769695837801,-5046.59,0.00015061,2]
[403962498,1769695837811,-5090.946,0.00015072,2]
[403962499,1769695837820,-374.033,0.00015072,2]
[403962500,1769695837830,-288.68407899,0.00015137,2]
[403962501,1769695837840,-1153.39351811,0.00015137,2]
[403962502,1769695837850,-465.11215325,0.00015137,2]
[403962503,1769695837859,-548.75558421,0.0001516,2]
[403962504,1769695837869,-500.0,0.0001516,2]
[403962505,1769695837879,-500.0,0.0001516,2]
[403962506,1769695837888,-500.0,0.0001516,2]
[403962507,1769695837898,-500.0,0.0001516,2]
[403962508,1769695837907,-500.0,0.0001516,2]
[403962509,1769695837918,-500.0,0.0001516,2]
[403962510,1769695837929,-620.13152007,0.0001516,2]
[403962511,1769695837939,-500.0,0.0001516,2]
[403962512,1769695837948,-500.0,0.0001516,2]
[403962513,1769695837958,-500.0,0.0001516,2]
[403962514,1769695837972,-357.52185889,0.0001516,2]
[403962515,1769695837983,-500.0,0.0001516,2]
[403962516,1769695837992,-500.0,0.0001516,2]